fUSD/lending_fUSD_20240629
["ID","MTS","AMOUNT","RATE_DAILY","PERIOD"]
[330638567,1719679846329,-579.33,0.00013895,3]
[330638568,1719679846340,-1724.24,0.00013895,3]
[330638569,1719679846349,-151.0,0.00013895,2]
[330638570,1719679846359,-500.0,0.00013895,3]
[330638571,1719679846369,-500.0,0.00013895,3]
[330638572,1719679846379,-500.0,0.00013895,3]
[330638573,1719679846390,-500.0,0.00013895,3]
[330638574,1719679846399,-499.668735,0.00013895,2]
[330638575,1719679846409,-499.668735,0.00013895,2]
[330638576,1719679846419,-1773.17,0.00013895,3]
[330638577,1719679846429,-500.0,0.00013895,3]
[330638578,1719679846439,-1265.27,0.00013895,3]
[330638579,1719679846451,-500.0,0.00013895,3]
[330638580,1719679846460,-1771.05,0.00013895,3]
[330638581,1719679846469,-175.61994,0.00013895,2]
[330638582,1719679846479,-500.0,0.00013895,3]
[330638583,1719679846489,-2500.0,0.00013895,3]
[330638584,1719679846498,-175.61994,0.00013895,2]
[330638585,1719679846508,-151.0,0.00013895,2]
[330638586,1719679846517,-500.0,0.00013895,3]
[330638587,1719679846527,-151.0,0.00013895,2]
[330638588,1719679846536,-1913.85,0.00013895,3]
[330638589,1719679846546,-151.0,0.00013895,2]
[330638590,1719679846555,-138.09345547,0.00013895,2]
[330638591,1719679847535,-12.90654453,0.00013895,2]
[330638592,1719679847545,-381.4185858,0.00013895,3]
[330638593,1719679847557,-118.5814142,0.00013895,3]
[330638594,1719679847567,-249.11195155,0.00013895,3]
[330638595,1719679847608,-1070.68609688,0.00013895,3]
[330638596,1719679847619,-346.11167018,0.00013895,3]
[330638597,1719679847630,-725.77704884,0.00013895,3]
[330638598,1719679847642,-220.14323255,0.00013895,3]
[330638599,1719679847652,-500.0,0.00013895,3]
[330638600,1719679847663,-1397.94,0.00013895,3]
[330638601,1719679847672,-993.52,0.00013895,3]
[330638602,1719679847682,-500.0,0.00013895,3]
[330638603,1719679847691,-500.0,0.00013895,3]
[330638604,1719679847701,-810.62,0.00013895,3]
[330638605,1719679847711,-235.776692,0.00013895,2]
[330638606,1719679847720,-235.776692,0.00013895,2]
[330638607,1719679847730,-235.776692,0.00013895,2]
[330638608,1719679847740,-235.776692,0.00013895,2]
[330638609,1719679847751,-1236.05,0.00013895,3]
[330638610,1719679847760,-454.18955807,0.00013895,3]
[330638611,1719679847769,-500.0,0.00013895,3]
[330638612,1719679847779,-808.44,0.00013895,3]
[330638613,1719679847788,-500.0,0.00013895,3]
[330638614,1719679847797,-212.835385,0.00013895,2]
[330638615,1719679847807,-720.13,0.00013895,3]
[330638616,1719679847816,-814.73,0.00013895,3]
[330638617,1719679847826,-500.0,0.00013895,3]
[330638618,1719679847837,-157.065682,0.00013895,2]
[330638619,1719679847847,-500.0,0.00013895,3]
[330638620,1719679847862,-500.0,0.00013895,3]
[330638621,1719679847871,-672.21,0.00013895,3]
[330638622,1719679847881,-500.0,0.00013895,2]
[330638623,1719679847890,-590.2,0.00013895,3]
[330638624,1719679847901,-565.63,0.00013895,3]
[330638625,1719679847910,-2420.93,0.00013895,3]
[330638626,1719679847920,-151.0,0.00013895,2]
[330638627,1719679847929,-151.0,0.00013895,2]
[330638628,1719679847941,-151.0,0.00013895,2]
[330638629,1719679847952,-500.0,0.00013895,3]
[330638630,1719679847962,-500.0,0.00013895,3]
[330638631,1719679847972,-614.49,0.00013895,3]
[330638632,1719679847982,-2090.74,0.00013895,3]
[330638633,1719679847992,-1340.07,0.00013895,3]
[330638634,1719679848001,-1015.68,0.00013895,3]
[330638635,1719679848011,-289.34,0.00013895,3]
[330638636,1719679848021,-266.875581,0.00013895,2]
[330638637,1719679848030,-266.875581,0.00013895,2]
[330638638,1719679848039,-2460.9,0.00013895,3]
[330638639,1719679848049,-266.875581,0.00013895,2]
[330638640,1719679848058,-266.875581,0.00013895,2]
[330638641,1719679848068,-227.645731,0.00013895,2]
[330638642,1719679848078,-227.645731,0.00013895,2]
[330638643,1719679848087,-1755.73,0.00013895,3]
[330638644,1719679848096,-500.0,0.00013895,3]
[330638645,1719679848106,-1260.01,0.00013895,3]
[330638646,1719679848116,-227.645731,0.00013895,2]
[330638647,1719679848125,-227.645731,0.00013895,2]
[330638648,1719679848135,-500.0,0.00013895,3]
[330638649,1719679848144,-60.739163,0.00013895,2]
[330638650,1719679848157,-90.260837,0.00013895,2]
[330638651,1719679848166,-151.0,0.00013895,2]
[330638652,1719679848176,-500.0,0.00013895,3]
[330638653,1719679848186,-500.0,0.00013895,3]
[330638654,1719679848195,-1728.38,0.00013895,3]
[330638655,1719679848207,-500.0,0.00013895,3]
[330638656,1719679848216,-1211.83,0.00013895,3]
[330638657,1719679848229,-343.73407111,0.00013895,3]
[330638658,1719679848239,-851.11,0.00013895,3]
[330638659,1719679848248,-571.76,0.00013895,3]
[330638660,1719679848258,-1412.35,0.00013895,3]
[330638661,1719679848267,-500.0,0.00013895,3]
[330638662,1719679848277,-250.187863,0.00013895,2]
[330638663,1719679848287,-250.187863,0.00013895,2]
[330638664,1719679848297,-1887.009776,0.00013895,2]
[330638665,1719679848306,-1887.009776,0.00013895,2]
[330638666,1719679848316,-1060.02,0.00013895,3]
[330638667,1719679848325,-250.187863,0.00013895,2]
[330638668,1719679848335,-500.0,0.00013895,3]
[330638669,1719679848344,-500.28721633,0.00013896,3]
[330638670,1719679848355,-500.0,0.00013896,3]
[330638671,1719679848364,-498.48115019,0.00013896,3]
[330638672,1719679848374,-500.0,0.00013896,3]
[330638673,1719679848383,-500.0,0.00013896,3]
[330638674,1719679848393,-500.0,0.00013896,3]
[330638675,1719679848403,-500.0,0.00013896,3]
[330638676,1719679848412,-500.0,0.00013896,3]
[330638677,1719679848421,-150.53840455,0.00013896,3]
[330638678,1719679848434,-353.04414514,0.00013896,3]
[330638679,1719679848443,-500.0,0.00013896,2]
[330638680,1719679848454,-277.46603125,0.00013896,3]
[330638681,1719679848464,-500.0,0.00013896,3]
[330638682,1719679848473,-500.0,0.00013896,3]
[330638683,1719679848482,-1559.18,0.00013896,3]
[330638684,1719679848492,-2602.18,0.00013896,3]
[330638685,1719679848501,-2321.83,0.00013896,3]
[330638686,1719679848511,-1885.73,0.00013896,3]
[330638687,1719679848520,-500.0,0.00013896,2]
[330638688,1719679848530,-971.58,0.00013896,3]
[330638689,1719679848540,-500.0,0.00013896,3]
[330638690,1719679848549,-1887.21,0.00013896,3]
[330638691,1719679848558,-2608.94,0.00013896,3]
[330638692,1719679848568,-151.0,0.00013896,2]
[330638693,1719679848577,-3350.56,0.00013896,3]
[330638694,1719679848588,-3107.86,0.00013896,3]
[330638695,1719679848599,-171.853726,0.00013896,2]
[330638696,1719679848609,-151.0,0.00013896,2]
[330638697,1719679848619,-171.853726,0.00013896,2]
[330638698,1719679848629,-151.0,0.00013896,2]
[330638699,1719679848639,-151.0,0.00013896,2]
[330638700,1719679848648,-500.0,0.00013896,3]
[330638701,1719679848657,-1406.69,0.00013896,2]
[330638702,1719679848667,-694.89,0.00013896,3]
[330638703,1719679848676,-1557.36,0.00013896,3]
[330638704,1719679848686,-1587.46,0.00013896,3]
[330638705,1719679848695,-2740.2,0.00013896,3]
[330638706,1719679848708,-2125.26,0.00013896,3]
[330638707,1719679848717,-581.1,0.00013896,3]
[330638708,1719679848726,-1823.78,0.00013896,3]
[330638709,1719679848737,-2655.99,0.00013896,3]
[330638710,1719679848746,-3753.85,0.00013896,3]
[330638711,1719679848755,-151.0,0.00013896,2]
[330638712,1719679848765,-3507.56,0.00013896,3]
[330638713,1719679848774,-151.0,0.00013896,2]
[330638714,1719679848786,-500.0,0.00013896,3]
[330638715,1719679848796,-500.0,0.00013896,3]
[330638716,1719679848805,-517.98,0.00013896,3]
[330638717,1719679848814,-1447.4,0.00013896,3]
[330638718,1719679848824,-500.0,0.00013896,3]
[330638719,1719679848833,-235.008372,0.00013896,2]
[330638720,1719679848844,-2058.85,0.00013896,3]
[330638721,1719679848859,-499.668735,0.00013896,2]
[330638722,1719679848869,-499.668735,0.00013896,2]
[330638723,1719679848878,-2778.23,0.00013896,3]
[330638724,1719679848888,-1656.15,0.00013896,3]
[330638725,1719679848899,-175.61994,0.00013896,2]
[330638726,1719679848908,-175.61994,0.00013896,2]
[330638727,1719679848917,-1475.24,0.00013896,3]
[330638728,1719679848929,-1214.5,0.00013896,3]
[330638729,1719679848939,-1613.0,0.00013896,3]
[330638730,1719679848949,-2465.19,0.00013896,3]
[330638731,1719679848960,-951.65,0.00013896,3]
[330638732,1719679848969,-500.0,0.00013896,3]
[330638733,1719679848979,-500.0,0.00013896,2]
[330638734,1719679848988,-393.1973759,0.00013896,3]
[330638735,1719679848998,-1947.12,0.00013896,3]
[330638736,1719679849007,-500.0,0.00013896,3]
[330638737,1719679849018,-500.0,0.00013896,3]
[330638738,1719679849028,-1729.98,0.00013896,3]
[330638739,1719679849037,-1464.99,0.00013896,3]
[330638740,1719679849047,-668.55,0.00013897,3]
[330638741,1719679849055,-500.0,0.00013897,3]
[330638742,1719679849065,-500.0,0.00013897,3]
[330638743,1719679849075,-500.0,0.00013897,3]
[330638744,1719679849084,-500.0,0.00013897,3]
[330638745,1719679849094,-500.0,0.00013897,3]
[330638746,1719679849104,-1426.54,0.00013897,3]
[330638747,1719679849114,-609.27744128,0.00013897,3]
[330638748,1719679849123,-954.51,0.00013897,3]
[330638749,1719679849133,-562.86,0.00013897,3]
[330638750,1719679849142,-500.0,0.00013897,3]
[330638751,1719679849152,-581.85,0.00013897,3]
[330638752,1719679849162,-500.0,0.00013897,3]
[330638753,1719679849172,-500.0,0.00013897,3]
[330638754,1719679849182,-500.0,0.00013897,3]
[330638755,1719679849191,-500.0,0.00013897,3]
[330638756,1719679849201,-500.0,0.00013897,3]
[330638757,1719679849211,-500.0,0.00013897,3]
[330638758,1719679849220,-500.0,0.00013897,3]
[330638759,1719679849230,-1920.24,0.00013897,3]
[330638760,1719679849239,-1569.66,0.00013897,3]
[330638761,1719679849248,-1578.64,0.00013897,3]
[330638762,1719679849258,-604.78,0.00013897,3]
[330638763,1719679849268,-896.61,0.00013897,3]
[330638764,1719679849278,-2089.15,0.00013897,3]
[330638765,1719679849287,-500.0,0.00013897,3]
[330638766,1719679849297,-500.0,0.00013897,3]
[330638767,1719679849307,-500.0,0.00013897,3]
[330638768,1719679849316,-500.0,0.00013897,3]
[330638769,1719679849326,-500.0,0.00013897,3]
[330638770,1719679849335,-500.0,0.00013897,3]
[330638771,1719679849345,-766.12,0.00013897,3]
[330638772,1719679849355,-1288.14,0.00013897,3]
[330638773,1719679849366,-760.52,0.00013897,3]
[330638774,1719679849377,-815.05,0.00013897,3]
[330638775,1719679849386,-1694.7,0.00013897,3]
[330638776,1719679849396,-1029.14,0.00013897,3]
[330638777,1719679849405,-500.0,0.00013897,3]
[330638778,1719679849414,-500.0,0.00013897,3]
[330638779,1719679849424,-500.0,0.00013897,3]
[330638780,1719679849433,-500.0,0.00013897,3]
[330638781,1719679849443,-500.0,0.00013897,3]
[330638782,1719679849452,-1732.61,0.00013897,3]
[330638783,1719679849461,-749.96,0.00013897,3]
[330638784,1719679849470,-581.58,0.00013897,3]
[330638785,1719679849480,-500.0,0.00013897,3]
[330638786,1719679849489,-500.0,0.00013897,3]
[330638787,1719679849498,-1042.23,0.00013897,3]
[330638788,1719679849511,-1554.44,0.00013897,3]
[330638789,1719679849521,-928.38,0.00013897,3]
[330638790,1719679849534,-500.0,0.00013897,3]
[330638791,1719679849544,-500.0,0.00013897,3]
[330638792,1719679849554,-500.0,0.00013897,3]
[330638793,1719679849565,-500.0,0.00013897,3]
[330638794,1719679849576,-500.0,0.00013897,3]
[330638795,1719679849586,-259.201027,0.00013897,2]
[330638796,1719679849595,-1220.14,0.00013897,3]
[330638797,1719679849604,-500.0,0.00013897,3]
[330638798,1719679849613,-151.0,0.00013897,2]
[330638799,1719679849623,-500.0,0.00013897,3]
[330638800,1719679849632,-647.37,0.00013897,3]
[330638801,1719679849641,-1068.41,0.00013897,3]
[330638802,1719679849650,-1503.53,0.00013897,3]
[330638803,1719679849660,-616.59,0.00013897,3]
[330638804,1719679849669,-151.0,0.00013897,2]
[330638805,1719679849678,-151.0,0.00013897,2]
[330638806,1719679849688,-1646.8,0.00013897,3]
[330638807,1719679849697,-500.0,0.00013897,3]
[330638808,1719679849707,-703.6,0.00013897,3]
[330638809,1719679849716,-538.74,0.00013897,3]
[330638810,1719679849725,-2101.99,0.00013897,3]
[330638811,1719679849734,-500.0,0.00013897,3]
[330638812,1719679850160,-1498.09,0.00013897,3]
[330638813,1719679850170,-885.56,0.00013897,3]
[330638814,1719679850181,-500.0,0.00013897,3]
[330638815,1719679850191,-500.0,0.00013897,3]
[330638816,1719679850200,-2060.87,0.00013897,3]
[330638817,1719679850211,-500.0,0.00013897,3]
[330638818,1719679850220,-3001.37,0.00013897,3]
[330638819,1719679850230,-522.39,0.00013897,3]
[330638820,1719679850239,-500.0,0.00013897,3]
[330638821,1719679850248,-500.0,0.00013897,3]
[330638822,1719679850257,-560.36,0.00013897,3]
[330638823,1719679850267,-500.0,0.00013897,3]
[330638824,1719679850276,-1066.83,0.00013897,3]
[330638825,1719679850285,-500.0,0.00013897,3]
[330638826,1719679850295,-513.66738232,0.00013897,3]
[330638827,1719679850305,-1339.2,0.00013897,3]
[330638828,1719679850314,-802.01,0.00013897,3]
[330638829,1719679850324,-500.0,0.00013897,3]
[330638830,1719679850333,-527.86,0.00013897,3]
[330638831,1719679850343,-500.0,0.00013897,3]
[330638832,1719679850352,-151.0,0.00013897,2]
[330638833,1719679850362,-549.37,0.00013897,3]
[330638834,1719679850371,-677.96,0.00013897,3]
[330638835,1719679850381,-500.0,0.00013897,3]
[330638836,1719679850390,-500.0,0.00013897,3]
[330638837,1719679850400,-500.0,0.00013897,3]
[330638838,1719679850409,-863.12,0.00013897,3]
[330638839,1719679850418,-1448.13,0.00013897,3]
[330638840,1719679850427,-591.58,0.00013897,3]
[330638841,1719679850436,-199.65274795,0.00013897,3]
[330638842,1719679850446,-500.0,0.00013897,3]
[330638843,1719679850455,-1219.58,0.00013897,3]
[330638844,1719679850464,-151.0,0.00013897,2]
[330638845,1719679850473,-151.0,0.00013897,2]
[330638846,1719679850482,-151.0,0.00013897,2]
[330638847,1719679850491,-151.0,0.00013897,2]
[330638848,1719679850500,-500.74975031,0.00013897,3]
[330638849,1719679850510,-151.0,0.00013897,2]
[330638850,1719679850519,-151.0,0.00013897,2]
[330638851,1719679850529,-500.0,0.00013897,3]
[330638852,1719679850538,-151.0,0.00013897,2]
[330638853,1719679850547,-151.0,0.00013897,2]
[330638854,1719679850557,-151.0,0.00013897,2]
[330638855,1719679850566,-151.0,0.00013897,2]
[330638856,1719679850575,-151.0,0.00013897,2]
[330638857,1719679850585,-151.0,0.00013897,2]
[330638858,1719679850595,-1357.95,0.00013897,3]
[330638859,1719679850604,-1808.63,0.00013897,3]
[330638860,1719679850614,-500.0,0.00013897,3]
[330638861,1719679850623,-2487.59,0.00013897,3]
[330638862,1719679850632,-500.0,0.00013897,3]
[330638863,1719679850641,-500.0,0.00013897,3]
[330638864,1719679850650,-2076.82,0.00013897,3]
[330638865,1719679850660,-218.94051377,0.00013897,3]
[330638866,1719679850670,-500.0,0.00013897,2]
[330638867,1719679850679,-722.97,0.00013897,3]
[330638868,1719679850689,-500.0,0.00013897,3]
[330638869,1719679850698,-210.54858,0.00013897,2]
[330638870,1719679850709,-210.54858,0.00013897,2]
[330638871,1719679850718,-1666.53,0.00013897,3]
[330638872,1719679850727,-210.54858,0.00013897,2]
[330638873,1719679850736,-210.54858,0.00013897,2]
[330638874,1719679850747,-151.0,0.00013897,2]
[330638875,1719679850756,-151.0,0.00013897,2]
[330638876,1719679850766,-1452.49,0.00013897,3]
[330638877,1719679850775,-1986.37,0.00013897,3]
[330638878,1719679850785,-151.0,0.00013897,2]
[330638879,1719679850794,-162.618317,0.00013897,2]
[330638880,1719679850804,-523.38,0.00013897,3]
[330638881,1719679850814,-1527.98,0.00013897,3]
[330638882,1719679850823,-151.0,0.00013897,2]
[330638883,1719679850833,-151.0,0.00013897,2]
[330638884,1719679850843,-569.6,0.00013897,3]
[330638885,1719679850856,-1966.66,0.00013897,3]
[330638886,1719679850865,-500.0,0.00013897,3]
[330638887,1719679850875,-151.0,0.00013897,2]
[330638888,1719679850884,-151.0,0.00013897,2]
[330638889,1719679850893,-500.0,0.00013897,3]
[330638890,1719679850902,-2275.64,0.00013897,3]
[330638891,1719679850912,-500.0,0.00013897,3]
[330638892,1719679850921,-151.0,0.00013897,2]
[330638893,1719679850933,-151.0,0.00013897,2]
[330638894,1719679850942,-500.0,0.00013897,3]
[330638895,1719679850951,-500.0,0.00013897,3]
[330638896,1719679850961,-500.0,0.00013897,3]
[330638897,1719679850970,-500.0,0.00013897,3]
[330638898,1719679850980,-151.0,0.00013897,2]
[330638899,1719679850990,-2017.77,0.00013897,3]
[330638900,1719679850999,-215.069251,0.00013897,2]
[330638901,1719679851009,-215.069251,0.00013897,2]
[330638902,1719679851018,-500.0,0.00013897,3]
[330638903,1719679851027,-711.21,0.00013897,3]
[330638904,1719679851037,-215.069251,0.00013897,2]
[330638905,1719679851047,-500.0,0.00013897,3]
[330638906,1719679851056,-215.069251,0.00013897,2]
[330638907,1719679851065,-2255.21,0.00013897,3]
[330638908,1719679851075,-151.0,0.00013897,2]
[330638909,1719679851084,-151.0,0.00013897,2]
[330638910,1719679851094,-500.0,0.00013897,3]
[330638911,1719679851104,-530.25,0.00013897,3]
[330638912,1719679851115,-500.0,0.00013897,3]
[330638913,1719679851124,-1674.98,0.00013897,3]
[330638914,1719679851135,-171.853726,0.00013897,2]
[330638915,1719679851144,-151.0,0.00013897,2]
[330638916,1719679851153,-171.853726,0.00013897,2]
[330638917,1719679851163,-836.95,0.00013897,3]
[330638918,1719679851172,-151.0,0.00013897,2]
[330638919,1719679851182,-500.0,0.00013897,3]
[330638920,1719679851191,-1303.2,0.00013897,3]
[330638921,1719679851200,-151.0,0.00013897,2]
[330638922,1719679851211,-1729.34,0.00013897,3]
[330638923,1719679851221,-500.0,0.00013897,3]
[330638924,1719679851231,-1058.61,0.00013897,3]
[330638925,1719679851240,-550.24,0.00013897,3]
[330638926,1719679851249,-1488.46,0.00013897,3]
[330638927,1719679851259,-1226.89,0.00013897,3]
[330638928,1719679851268,-653.89,0.00013897,3]
[330638929,1719679851278,-500.0,0.00013897,3]
[330638930,1719679851287,-782.17,0.00013897,3]
[330638931,1719679851297,-500.0,0.00013897,3]
[330638932,1719679851306,-500.0,0.00013897,3]
[330638933,1719679851316,-478.4692873,0.00013897,3]
[330638934,1719679851325,-302.662156,0.00013897,2]
[330638935,1719679851334,-302.662156,0.00013897,2]
[330638936,1719679851344,-500.0,0.00013897,3]
[330638937,1719679851353,-302.662156,0.00013897,2]
[330638938,1719679851362,-302.662156,0.00013897,2]
[330638939,1719679851372,-1328.07,0.00013897,3]
[330638940,1719679851381,-563.0,0.00013897,3]
[330638941,1719679851390,-747.74,0.00013897,3]
[330638942,1719679851399,-1094.23,0.00013897,3]
[330638943,1719679851410,-151.0,0.00013897,2]
[330638944,1719679851419,-151.0,0.00013897,2]
[330638945,1719679851428,-1852.88,0.00013897,3]
[330638946,1719679851437,-563.48,0.00013897,3]
[330638947,1719679851447,-500.0,0.00013897,3]
[330638948,1719679851457,-500.0,0.00013897,3]
[330638949,1719679851466,-633.32,0.00013897,3]
[330638950,1719679851479,-1237.77,0.00013897,3]
[330638951,1719679851488,-151.0,0.00013897,2]
[330638952,1719679851498,-182.340003,0.00013897,2]
[330638953,1719679851507,-151.0,0.00013897,2]
[330638954,1719679851517,-162.059226,0.00013897,2]
[330638955,1719679851526,-1432.2,0.00013897,3]
[330638956,1719679851535,-500.0,0.00013897,3]
[330638957,1719679851545,-597.27,0.00013897,3]
[330638958,1719679851554,-500.0,0.00013897,3]
[330638959,1719679851564,-2383.08,0.00013897,3]
[330638960,1719679851574,-500.0,0.00013897,3]
[330638961,1719679851583,-151.0,0.00013897,2]
[330638962,1719679851593,-151.0,0.00013897,2]
[330638963,1719679851602,-500.0,0.00013897,3]
[330638964,1719679851611,-500.89999399,0.00013897,3]
[330638965,1719679851620,-151.0,0.00013897,2]
[330638966,1719679851630,-1456.5,0.00013897,3]
[330638967,1719679851640,-500.0,0.00013897,3]
[330638968,1719679851658,-2664.48,0.00013897,3]
[330638969,1719679851667,-151.0,0.00013897,2]
[330638970,1719679851677,-500.0,0.00013897,3]
[330638971,1719679851687,-1840.88,0.00013897,3]
[330638972,1719679851696,-574.35,0.00013897,3]
[330638973,1719679851706,-500.0,0.00013897,3]
[330638974,1719679851715,-500.0,0.00013897,3]
[330638975,1719679851724,-500.0,0.00013897,3]
[330638976,1719679851735,-1929.53,0.00013897,3]
[330638977,1719679851745,-500.0,0.00013897,3]
[330638978,1719679851756,-500.0,0.00013897,3]
[330638979,1719679851765,-1600.08,0.00013897,3]
[330638980,1719679851776,-500.0,0.00013897,3]
[330638981,1719679851786,-1759.07,0.00013897,3]
[330638982,1719679851796,-500.0,0.00013897,3]
[330638983,1719679851806,-2890.97,0.00013897,3]
[330638984,1719679851815,-500.0,0.00013897,3]
[330638985,1719679851825,-500.0,0.00013897,3]
[330638986,1719679851834,-500.0,0.00013897,3]
[330638987,1719679851844,-1236.88,0.00013897,3]
[330638988,1719679851857,-500.0,0.00013897,3]
[330638989,1719679851867,-499.668735,0.00013897,2]
[330638990,1719679851876,-499.668735,0.00013897,2]
[330638991,1719679851886,-500.0,0.00013897,3]
[330638992,1719679851895,-554.81,0.00013897,3]
[330638993,1719679851906,-500.0,0.00013897,3]
[330638994,1719679851916,-833.84,0.00013897,3]
[330638995,1719679851927,-500.0,0.00013897,3]
[330638996,1719679851936,-175.61994,0.00013897,2]
[330638997,1719679851946,-500.0,0.00013897,3]
[330638998,1719679851957,-175.61994,0.00013897,2]
[330638999,1719679851967,-806.81,0.00013897,3]
[330639000,1719679851977,-653.61,0.00013897,3]
[330639001,1719679851987,-151.0,0.00013897,2]
[330639002,1719679851996,-700.58,0.00013897,3]
[330639003,1719679852006,-151.0,0.00013897,2]
[330639004,1719679852015,-797.53,0.00013897,3]
[330639005,1719679852025,-2685.18,0.00013897,3]
[330639006,1719679852035,-500.0,0.00013897,3]
[330639007,1719679852044,-500.0,0.00013897,3]
[330639008,1719679852053,-504.25,0.00013897,3]
[330639009,1719679852063,-1316.75,0.00013897,3]
[330639010,1719679852072,-500.0,0.00013897,3]
[330639011,1719679852082,-235.776692,0.00013897,2]
[330639012,1719679852091,-1241.08,0.00013897,3]
[330639013,1719679852100,-2403.87,0.00013897,3]
[330639014,1719679852110,-235.776692,0.00013897,2]
[330639015,1719679852119,-500.0,0.00013897,3]
[330639016,1719679852129,-1027.17,0.00013897,3]
[330639017,1719679852138,-500.0,0.00013897,3]
[330639018,1719679852148,-500.0,0.00013897,3]
[330639019,1719679852158,-2064.77,0.00013897,3]
[330639020,1719679852168,-1269.97,0.00013897,3]
[330639021,1719679852177,-500.0,0.00013897,3]
[330639022,1719679852187,-500.0,0.00013897,2]
[330639023,1719679852197,-1111.23,0.00013897,3]
[330639024,1719679852208,-1677.43,0.00013897,3]
[330639025,1719679852218,-500.0,0.00013897,3]
[330639026,1719679852228,-500.0,0.00013897,3]
[330639027,1719679852237,-500.0,0.00013897,3]
[330639028,1719679852247,-500.0,0.00013897,3]
[330639029,1719679852256,-500.0,0.00013897,3]
[330639030,1719679852266,-423.04019243,0.00013897,3]
[330639031,1719679852276,-500.0,0.00013897,3]
[330639032,1719679852285,-1139.99,0.00013897,3]
[330639033,1719679852295,-266.875581,0.00013897,2]
[330639034,1719679852304,-679.8,0.00013897,3]
[330639035,1719679852314,-778.4,0.00013897,3]
[330639036,1719679852323,-266.875581,0.00013897,2]
[330639037,1719679852333,-227.645731,0.00013897,2]
[330639038,1719679852343,-227.645731,0.00013897,2]
[330639039,1719679852353,-577.05,0.00013897,3]
[330639040,1719679852363,-1432.87,0.00013897,3]
[330639041,1719679852373,-151.0,0.00013897,2]
[330639042,1719679852383,-1661.18,0.00013897,3]
[330639043,1719679852393,-500.0,0.00013897,3]
[330639044,1719679852402,-1090.16,0.00013897,2]
[330639045,1719679852412,-672.06,0.00013897,3]
[330639046,1719679852422,-613.54,0.00013897,3]
[330639047,1719679852432,-1328.32,0.00013897,3]
[330639048,1719679852442,-1192.42,0.00013897,3]
[330639049,1719679852451,-500.0,0.00013897,3]
[330639050,1719679852462,-1021.91,0.00013897,3]
[330639051,1719679852564,-250.187863,0.00013897,2]
[330639052,1719679852575,-250.187863,0.00013897,2]
[330639053,1719679852585,-1887.009776,0.00013897,2]
[330639054,1719679852595,-1887.009776,0.00013897,2]
[330639055,1719679852605,-752.82,0.00013897,3]
[330639056,1719679852614,-967.09,0.00013898,3]
[330639057,1719679852624,-11224.18,0.00013898,3]
[330639058,1719679852634,-4281.84,0.00013898,3]
[330639059,1719679852642,-4713.06,0.00013898,3]
[330639060,1719679852652,-4080.27,0.00013898,3]
[330639061,1719679852662,-5392.05,0.00013898,3]
[330639062,1719679852672,-4275.98,0.00013898,3]
[330639063,1719679852681,-4090.47,0.00013898,3]
[330639064,1719679852691,-996.58735536,0.00013898,3]
[330639065,1719679852717,-293.33957425,0.00013898,3]
[330639066,1719679852729,-313.19811048,0.00013898,3]